fUST/lending_fUST_20250730
["ID","MTS","AMOUNT","RATE_DAILY","PERIOD"]
[376049551,1753840240732,-160.0,0.00019982,2]
[376049552,1753840240742,-214.91980558,0.00019982,2]
[376049553,1753840240751,-216.1031716,0.00019982,2]
[376049554,1753840240760,-841.06558547,0.00019982,2]
[376049555,1753840240769,-12637.12721421,0.00019982,2]
[376049556,1753840240778,-526.67226028,0.00019983,2]
[376049557,1753840240787,-460.5085953,0.00019983,2]
[376049558,1753840240797,-231.39372452,0.00019983,2]
[376049559,1753840240807,-160.0,0.00019983,2]
[376049560,1753840240815,-160.0,0.00019983,2]
[376049561,1753840240825,-160.0,0.00019983,2]
[376049562,1753840240834,-155.54437735,0.0001999,2]
[376049563,1753840240843,-21000.48785308,0.0002,2]
[376049564,1753840240854,-21825.92120687,0.0002,2]
[376049565,1753840240863,-1282.07079313,0.0002,2]
[376049566,1753840240872,-843.83,0.0002,2]
[376049567,1753840240882,-936.37171878,0.0002,2]
[376049568,1753840240892,-250.0,0.00020023,2]
[376049569,1753840240904,-502.81425968,0.00020067,2]
[376049570,1753840240914,-501.79877263,0.00020067,2]
[376049571,1753840240923,-440.57843255,0.00020075,2]
[376049572,1753840240932,-426.1,0.0002009,3]
[376049573,1753840240942,-360.923736,0.00020187,2]
[376049574,1753840240951,-705.782756,0.00020196,2]
[376049575,1753840240960,-502.08710618,0.00020196,2]
[376049576,1753840240969,-460.0,0.00020248,2]
[376049577,1753840240981,-1939.76,0.00020248,2]
[376049578,1753840240990,-1120.65,0.00020248,2]
[376049579,1753840240999,-460.0,0.00020248,2]
[376049580,1753840241009,-818.13,0.00020248,2]
[376049581,1753840241018,-460.0,0.00020249,2]
[376049582,1753840241027,-460.0,0.00020249,2]
[376049583,1753840241036,-460.0,0.00020249,2]
[376049584,1753840241046,-460.0,0.00020249,2]
[376049586,1753840241055,-647.4,0.00020249,2]
[376049587,1753840241064,-460.0,0.00020249,2]
[376049588,1753840241073,-460.0,0.00020249,2]
[376049590,1753840241083,-460.0,0.00020249,2]
[376049592,1753840241091,-460.0,0.00020249,2]
[376049594,1753840241100,-460.0,0.00020249,2]
[376049596,1753840241112,-460.0,0.00020249,2]
[376049598,1753840241121,-1294.82,0.00020249,2]
[376049600,1753840241130,-460.0,0.00020249,2]
[376049602,1753840241140,-460.0,0.00020249,2]
[376049604,1753840241148,-460.0,0.00020249,2]
[376049605,1753840241163,-460.0,0.00020249,2]
[376049607,1753840241176,-460.0,0.00020249,2]
[376049609,1753840241185,-1534.99,0.0002025,2]
[376049611,1753840241195,-737.07,0.0002025,2]
[376049613,1753840241204,-460.0,0.0002025,2]
[376049615,1753840241214,-678.08,0.0002025,2]
[376049618,1753840241223,-460.0,0.0002025,2]
[376049620,1753840241232,-1013.8,0.0002025,2]
[376049622,1753840241242,-460.0,0.0002025,2]
[376049623,1753840241251,-466.28,0.0002025,2]
[376049625,1753840241261,-779.48,0.0002025,2]
[376049628,1753840241270,-1980.43,0.0002025,2]
[376049630,1753840241280,-460.0,0.0002025,2]
[376049632,1753840241289,-460.0,0.0002025,2]
[376049634,1753840241298,-460.0,0.0002025,2]
[376049636,1753840241307,-484.35,0.0002025,2]
[376049638,1753840241319,-460.0,0.0002025,2]
[376049640,1753840241328,-1629.06,0.0002025,2]
[376049642,1753840241337,-460.0,0.0002025,2]
[376049644,1753840241347,-460.0,0.0002025,2]
[376049646,1753840241358,-460.0,0.0002025,2]
[376049648,1753840241367,-920.55,0.0002025,2]
[376049650,1753840241376,-460.0,0.0002025,2]
[376049652,1753840241386,-460.0,0.0002025,2]
[376049654,1753840241395,-460.0,0.0002025,2]
[376049656,1753840241404,-460.0,0.0002025,2]
[376049658,1753840241414,-460.0,0.0002025,2]
[376049660,1753840241423,-460.49,0.0002025,2]
[376049662,1753840241433,-4231.04,0.00020251,2]
[376049664,1753840241442,-601.67878195,0.00020252,2]
[376049666,1753840241451,-1935.82,0.00020252,2]
[376049668,1753840241461,-1070.85699928,0.00020259,2]
[376049670,1753840241470,-503.23798076,0.00020259,2]
[376049672,1753840241479,-324.08529543,0.00020259,2]
[376049674,1753840241488,-501.19316058,0.00020259,2]
[376049676,1753840241497,-505.13672261,0.00020259,2]
[376049678,1753840241506,-426.1,0.00020307,3]
[376049680,1753840241518,-571.6784259,0.000204,2]
[376049682,1753840241527,-1000.0,0.00020448,2]
[376049684,1753840241536,-891.25219417,0.00020464,2]
[376049686,1753840241546,-823.15423214,0.00020483,2]
[376049688,1753840241556,-500.77306425,0.00020521,2]
[376049690,1753840241565,-503.62923428,0.00020521,2]
[376049692,1753840241575,-783.23402811,0.00020521,2]
[376049694,1753840241585,-505.19863821,0.00020521,2]
[376049696,1753840241594,-501.46076756,0.00020521,2]
[376049698,1753840241604,-460.0,0.00020522,2]
[376049700,1753840241614,-1939.76,0.00020522,2]
[376049702,1753840241624,-1120.65,0.00020522,2]
[376049704,1753840241633,-460.0,0.00020522,2]
[376049706,1753840241643,-818.13,0.00020522,2]
[376049708,1753840241653,-426.1,0.00020523,3]
[376049710,1753840241663,-460.0,0.00020523,2]
[376049712,1753840241672,-460.0,0.00020523,2]
[376049714,1753840241681,-460.0,0.00020523,2]
[376049716,1753840241690,-647.4,0.00020523,2]
[376049718,1753840241700,-481.77405196,0.00020523,2]
[376049720,1753840241710,-460.0,0.00020523,2]
[376049722,1753840241719,-460.0,0.00020523,2]
[376049724,1753840241728,-460.0,0.00020523,2]
[376049726,1753840241737,-460.0,0.00020523,2]
[376049728,1753840241746,-482.10704251,0.00020523,2]
[376049730,1753840241756,-1294.82,0.00020523,2]
[376049732,1753840241765,-460.0,0.00020523,2]
[376049734,1753840241774,-460.0,0.00020523,2]
[376049736,1753840241783,-460.0,0.00020523,2]
[376049738,1753840241792,-500.01415062,0.00020523,2]
[376049740,1753840241801,-460.0,0.00020523,2]
[376049742,1753840241810,-1534.99,0.00020524,2]
[376049744,1753840241820,-737.07,0.00020524,2]
[376049746,1753840241829,-460.0,0.00020524,2]
[376049748,1753840241838,-678.08,0.00020524,2]
[376049750,1753840241847,-460.0,0.00020524,2]
[376049752,1753840241859,-1013.8,0.00020524,2]
[376049754,1753840241869,-460.0,0.00020524,2]
[376049756,1753840241878,-466.28,0.00020524,2]
[376049758,1753840241887,-779.48,0.00020524,2]
[376049760,1753840241900,-1980.43,0.00020524,2]
[376049762,1753840241910,-460.0,0.00020524,2]
[376049764,1753840241918,-460.0,0.00020524,2]
[376049766,1753840241927,-460.0,0.00020524,2]
[376049768,1753840241938,-484.35,0.00020524,2]
[376049770,1753840241947,-460.0,0.00020524,2]
[376049772,1753840241955,-1629.06,0.00020524,2]
[376049774,1753840241964,-458.00590618,0.00020524,2]
[376049776,1753840241975,-244.71314173,0.00020524,2]
[376049778,1753840241985,-477.04561844,0.00020524,2]
[376049780,1753840241995,-920.55,0.00020524,2]
[376049782,1753840242005,-460.0,0.00020524,2]
[376049784,1753840242014,-484.63941642,0.00020524,2]
[376049786,1753840242023,-460.0,0.00020524,2]
[376049788,1753840242032,-460.0,0.00020524,2]
[376049790,1753840242041,-460.0,0.00020524,2]
[376049792,1753840242050,-460.49,0.00020524,2]
[376049794,1753840242059,-4231.04,0.00020525,2]
[376049796,1753840242068,-1935.82,0.00020526,2]
[376049798,1753840242078,-420.0,0.0002058,2]
[376049800,1753840242087,-426.1,0.00020739,4]
[376049802,1753840242096,-2030.296672,0.00020779,2]
[376049804,1753840242106,-25000.0,0.00020779,2]
[376049806,1753840242116,-17101.16651199,0.00020779,2]
[376049808,1753840242125,-153.97846671,0.00020779,2]
[376049810,1753840242134,-151.0,0.00020779,2]
[376049812,1753840242143,-151.0,0.00020779,2]
[376049814,1753840242153,-151.0,0.00020779,2]
[376049816,1753840242162,-151.0,0.00020779,2]
[376049818,1753840242172,-151.0,0.00020779,2]
[376049820,1753840242181,-151.0,0.00020779,2]
[376049822,1753840242190,-151.0,0.00020779,2]
[376049824,1753840242199,-151.0,0.00020779,2]
[376049826,1753840242209,-151.0,0.00020779,2]
[376049828,1753840242218,-151.0,0.00020779,2]
[376049830,1753840242228,-151.0,0.00020779,2]
[376049832,1753840242237,-151.0,0.00020779,2]
[376049834,1753840242247,-272.26626498,0.00020779,2]
[376049836,1753840242256,-151.0,0.00020779,2]
[376049838,1753840242265,-151.0,0.00020779,2]
[376049840,1753840242275,-151.0,0.00020779,2]
[376049842,1753840242284,-151.0,0.00020779,2]
[376049844,1753840242293,-151.0,0.00020779,2]
[376049846,1753840242302,-151.0,0.00020779,2]
[376049848,1753840242312,-151.0,0.00020779,2]
[376049850,1753840242321,-151.35245514,0.00020779,2]
[376049852,1753840242331,-151.0,0.00020779,2]
[376049854,1753840242340,-151.0,0.00020779,2]
[376049856,1753840242349,-151.0,0.00020779,2]
[376049858,1753840242360,-151.0,0.00020779,2]
[376049860,1753840242369,-151.0,0.00020779,2]
[376049862,1753840242379,-151.0,0.00020779,2]
[376049864,1753840242389,-151.0,0.00020779,2]
[376049866,1753840242398,-160.67302001,0.00020779,2]
[376049868,1753840242407,-471.47285073,0.00020796,2]
[376049871,1753840242419,-1939.76,0.00020796,2]
[376049874,1753840242429,-1120.65,0.00020796,2]
[376049876,1753840242438,-468.29253804,0.00020796,2]
[376049878,1753840242447,-818.13,0.00020796,2]
[376049881,1753840242456,-590.35549673,0.00020797,2]
[376049883,1753840242465,-460.0,0.00020797,2]
[376049885,1753840242475,-460.0,0.00020797,2]
[376049887,1753840242484,-647.4,0.00020797,2]
[376049889,1753840242493,-520.6712624,0.00020797,2]
[376049891,1753840242503,-460.0,0.00020797,2]
[376049908,1753840242616,-553.54312669,0.00020797,2]
[376049911,1753840242643,-460.0,0.00020797,2]
[376049913,1753840242653,-1294.82,0.00020797,2]
[376049915,1753840242663,-460.0,0.00020797,2]
[376049916,1753840242673,-460.0,0.00020797,2]
[376049918,1753840242682,-460.0,0.00020797,2]
[376049920,1753840242691,-1534.99,0.00020798,2]
[376049922,1753840242701,-737.07,0.00020798,2]
[376049924,1753840242711,-460.0,0.00020798,2]
[376049927,1753840242720,-678.08,0.00020798,2]
[376049929,1753840242730,-460.0,0.00020798,2]
[376049930,1753840242739,-1013.8,0.00020798,2]
[376049932,1753840242749,-460.0,0.00020798,2]
[376049934,1753840242759,-466.28,0.00020798,2]
[376049936,1753840242769,-779.48,0.00020798,2]
[376049938,1753840242778,-1980.43,0.00020798,2]
[376049940,1753840242788,-460.0,0.00020798,2]
[376049943,1753840242797,-572.70608313,0.00020798,2]
[376049944,1753840242807,-411.22269329,0.00020798,2]
[376049946,1753840242816,-484.35,0.00020798,2]
[376049948,1753840242826,-460.0,0.00020798,2]
[376049950,1753840242835,-1629.06,0.00020798,2]
[376049952,1753840242845,-920.55,0.00020798,2]
[376049955,1753840242856,-460.0,0.00020798,2]
[376049957,1753840242866,-460.0,0.00020798,2]
[376049959,1753840242876,-158.02719055,0.00020798,2]
[376049961,1753840242886,-460.0,0.00020798,2]
[376049963,1753840242895,-460.49,0.00020798,2]
[376049965,1753840242908,-4231.04,0.00020799,2]
[376049967,1753840242917,-500.0,0.00020799,2]
[376049969,1753840242927,-500.0,0.00020799,2]
[376049971,1753840242936,-500.0,0.00020799,2]
[376049972,1753840242946,-500.0,0.00020799,2]
[376049974,1753840242955,-500.0,0.00020799,2]
[376049976,1753840242964,-500.0,0.00020799,2]
[376049980,1753840242976,-500.0,0.00020799,2]
[376049983,1753840242985,-254.75256309,0.00020799,2]
[376049986,1753840242995,-500.0,0.00020799,2]
[376049988,1753840243005,-500.0,0.00020799,2]
[376049992,1753840243015,-500.0,0.00020799,2]
[376049996,1753840243024,-552.56225614,0.00020799,2]
[376049999,1753840243034,-500.0,0.00020799,2]
[376050002,1753840243044,-500.0,0.00020799,2]
[376050004,1753840243053,-500.0,0.00020799,2]
[376050007,1753840243062,-500.0,0.00020799,2]
[376050010,1753840243071,-500.0,0.00020799,2]
[376050013,1753840243081,-500.0,0.00020799,2]
[376050016,1753840243091,-544.23534874,0.00020799,2]
[376050019,1753840243100,-500.0,0.00020799,2]
[376050022,1753840243112,-500.0,0.00020799,2]
[376050025,1753840243123,-500.0,0.00020799,2]
[376050028,1753840243139,-500.0,0.00020799,2]
[376050031,1753840243148,-500.0,0.00020799,2]
[376050034,1753840243157,-500.0,0.00020799,2]
[376050037,1753840243167,-534.32320944,0.00020799,2]
[376050040,1753840243176,-500.0,0.00020799,2]
[376050043,1753840243187,-500.0,0.00020799,2]
[376050046,1753840243196,-500.0,0.00020799,2]
[376050049,1753840243206,-500.0,0.00020799,2]
[376050052,1753840243215,-500.0,0.00020799,2]
[376050055,1753840243225,-464.64958482,0.00020799,2]
[376050057,1753840243235,-500.0,0.00020799,2]
[376050059,1753840243245,-1935.82,0.000208,2]
[376050061,1753840243254,-1356.12641918,0.00020834,2]
[376050064,1753840243264,-160.0,0.00020944,2]
[376050066,1753840243274,-426.1,0.00020956,4]
[376050068,1753840243284,-437.2549573,0.00020959,2]
[376050070,1753840243293,-430.1392862,0.00020959,2]
[376050072,1753840243303,-430.1392862,0.00020959,2]
[376050074,1753840243312,-430.1392862,0.00020959,2]
[376050075,1753840243321,-159.69883844,0.00020996,2]
[376050078,1753840243331,-47097.38989514,0.00021,2]
[376050080,1753840243341,-1055.22,0.00021008,3]
[376050081,1753840243350,-527.62,0.00021008,3]
[376050083,1753840243361,-859.9727664,0.00021041,2]
[376050085,1753840243371,-2110.46,0.00021062,3]
[376050087,1753840243380,-153.0,0.00021068,2]
[376050089,1753840243390,-153.0,0.00021068,2]
[376050091,1753840243400,-153.0,0.00021068,2]
[376050093,1753840243413,-160.1053548,0.00021068,2]
[376050096,1753840243423,-1939.76,0.0002107,2]
[376050098,1753840243432,-1120.65,0.0002107,2]
[376050100,1753840243443,-818.13,0.0002107,2]
[376050102,1753840243452,-460.0,0.00021071,2]
[376050104,1753840243462,-460.0,0.00021071,2]
[376050106,1753840243471,-647.4,0.00021071,2]
[376050108,1753840243481,-460.0,0.00021071,2]
[376050110,1753840243490,-460.0,0.00021071,2]
[376050112,1753840243500,-1294.82,0.00021071,2]
[376050114,1753840243510,-460.0,0.00021071,2]
[376050116,1753840243519,-460.0,0.00021071,2]
[376050118,1753840243529,-460.0,0.00021071,2]
[376050120,1753840243538,-1534.99,0.00021072,2]
[376050122,1753840243548,-737.07,0.00021072,2]
[376050124,1753840243557,-460.0,0.00021072,2]
[376050126,1753840243566,-678.08,0.00021072,2]
[376050128,1753840243576,-460.0,0.00021072,2]
[376050130,1753840243586,-1013.8,0.00021072,2]
[376050132,1753840243596,-460.0,0.00021072,2]
[376050133,1753840243606,-466.28,0.00021072,2]
[376050136,1753840243616,-779.48,0.00021072,2]
[376050138,1753840243625,-1980.43,0.00021072,2]
[376050140,1753840243636,-460.0,0.00021072,2]
[376050142,1753840243645,-484.35,0.00021072,2]
[376050143,1753840243654,-460.0,0.00021072,2]
[376050145,1753840243664,-1629.06,0.00021072,2]
[376050147,1753840243673,-920.55,0.00021072,2]
[376050149,1753840243683,-460.0,0.00021072,2]
[376050151,1753840243692,-460.0,0.00021072,2]
[376050153,1753840243702,-460.0,0.00021072,2]
[376050155,1753840243711,-460.49,0.00021072,2]
[376050157,1753840243721,-4231.04,0.00021073,2]
[376050159,1753840243729,-1935.82,0.00021074,2]
[376050161,1753840243740,-891.25219417,0.00021093,2]
[376050164,1753840243750,-153.0,0.00021123,2]
[376050165,1753840243759,-153.0,0.00021123,2]
[376050167,1753840243768,-153.0,0.00021123,2]
[376050169,1753840243777,-153.0,0.00021123,2]
[376050171,1753840243787,-578.1881624,0.00021123,2]
[376050173,1753840243796,-153.0,0.00021123,2]
[376050175,1753840243806,-154.7647222,0.00021123,2]
[376050177,1753840243815,-587.2836894,0.00021123,2]
[376050179,1753840243824,-578.1881624,0.00021123,2]
[376050180,1753840243833,-578.1881624,0.00021123,2]
[376050182,1753840243842,-578.1881624,0.00021123,2]
[376050184,1753840243851,-578.1881624,0.00021123,2]
[376050186,1753840243861,-578.1881624,0.00021123,2]
[376050188,1753840243871,-578.1881624,0.00021123,2]
[376050190,1753840243880,-786.22449407,0.00021135,2]
[376050192,1753840243890,-200.0,0.00021146,15]
[376050194,1753840243901,-200.0,0.00021146,15]
[376050196,1753840243911,-200.0,0.00021146,15]
[376050198,1753840243920,-200.0,0.00021146,15]
[376050200,1753840243929,-320.0,0.00021146,15]
[376050202,1753840243938,-426.1,0.00021172,4]
[376050204,1753840243949,-153.0,0.00021205,2]
[376050206,1753840243958,-160.1053548,0.00021205,2]
[376050208,1753840243968,-578.1881624,0.00021205,2]
[376050210,1753840243978,-578.1881624,0.00021205,2]
[376050212,1753840243987,-17920.00742647,0.00021244,3]
[376050214,1753840244000,-12637.12721421,0.00021244,3]
[376050216,1753840244009,-214.91980558,0.00021244,3]
[376050218,1753840244018,-2146.0,0.00021267,2]
[376050219,1753840244027,-970.0,0.00021267,2]
[376050221,1753840244037,-151.0,0.00021288,2]
[376050223,1753840244047,-179.73040439,0.00021295,2]
[376050225,1753840244058,-1939.76,0.00021344,2]
[376050228,1753840244070,-1120.65,0.00021344,2]
[376050229,1753840244079,-818.13,0.00021344,2]
[376050231,1753840244089,-460.0,0.00021345,2]
[376050234,1753840244099,-460.0,0.00021345,2]
[376050235,1753840244109,-647.4,0.00021345,2]
[376050237,1753840244119,-460.0,0.00021345,2]
[376050240,1753840244133,-460.0,0.00021345,2]
[376050242,1753840244154,-1294.82,0.00021345,2]
[376050244,1753840244163,-460.0,0.00021345,2]
[376050246,1753840244172,-460.0,0.00021345,2]
[376050248,1753840244181,-381.7869544,0.00021345,2]
[376050250,1753840244190,-1534.99,0.00021346,2]
[376050252,1753840244200,-737.07,0.00021346,2]
[376050254,1753840244209,-460.0,0.00021346,2]
[376050255,1753840244219,-678.08,0.00021346,2]
[376050257,1753840244228,-460.0,0.00021346,2]
[376050259,1753840244237,-1013.8,0.00021346,2]
[376050261,1753840244246,-460.0,0.00021346,2]
[376050263,1753840244255,-466.28,0.00021346,2]
[376050265,1753840244265,-779.48,0.00021346,2]
[376050267,1753840244274,-1980.43,0.00021346,2]
[376050269,1753840244283,-460.0,0.00021346,2]
[376050271,1753840244293,-484.35,0.00021346,2]
[376050273,1753840244304,-460.0,0.00021346,2]
[376050275,1753840244313,-1629.06,0.00021346,2]
[376050277,1753840244323,-920.55,0.00021346,2]
[376050280,1753840244333,-460.0,0.00021346,2]
[376050281,1753840244342,-460.0,0.00021346,2]
[376050283,1753840244352,-460.0,0.00021346,2]
[376050285,1753840244362,-460.49,0.00021346,2]
[376050287,1753840244372,-4231.04,0.00021347,2]
[376050289,1753840244381,-1935.82,0.00021348,2]
[376050291,1753840244391,-635.539,0.00021349,2]
[376050293,1753840244400,-426.1,0.00021388,4]
[376050295,1753840244409,-160.0,0.00021434,3]
[376050297,1753840244419,-260.0,0.00021492,2]
[376050299,1753840244428,-162.5934976,0.00021507,2]
[376050300,1753840244437,-178.4386705,0.00021507,2]
[376050301,1753840244447,-160.1053548,0.00021507,2]
[376050302,1753840244456,-178.4386705,0.00021507,2]
[376050303,1753840244465,-1155.9526372,0.00021507,2]
[376050304,1753840244474,-160.1053548,0.00021507,2]
[376050305,1753840244484,-178.4386705,0.00021507,2]
[376050306,1753840244493,-159.859046,0.00021507,2]
[376050307,1753840244503,-307.8597605,0.00021589,2]
[376050308,1753840244512,-178.3698008,0.00021589,2]
[376050309,1753840244521,-426.1,0.00021605,4]
[376050310,1753840244531,-1939.76,0.00021618,2]
[376050311,1753840244541,-1120.65,0.00021618,2]
[376050312,1753840244551,-818.13,0.00021618,2]
[376050313,1753840244560,-460.0,0.00021619,2]
[376050314,1753840244570,-460.0,0.00021619,2]
[376050315,1753840244579,-647.4,0.00021619,2]
[376050316,1753840244589,-460.0,0.00021619,2]
[376050317,1753840244598,-460.0,0.00021619,2]
[376050318,1753840244608,-1294.82,0.00021619,2]
[376050319,1753840244617,-460.0,0.00021619,2]
[376050321,1753840244628,-460.0,0.00021619,2]
[376050323,1753840244638,-1534.99,0.0002162,2]
[376050325,1753840244647,-737.07,0.0002162,2]
[376050327,1753840244656,-460.0,0.0002162,2]
[376050329,1753840244665,-678.08,0.0002162,2]
[376050331,1753840244675,-460.0,0.0002162,2]
[376050333,1753840244685,-1013.8,0.0002162,2]
[376050335,1753840244695,-460.0,0.0002162,2]
[376050337,1753840244704,-466.28,0.0002162,2]
[376050339,1753840244714,-779.48,0.0002162,2]
[376050341,1753840244724,-1980.43,0.0002162,2]
[376050343,1753840244733,-460.0,0.0002162,2]
[376050345,1753840244742,-484.35,0.0002162,2]
[376050347,1753840244752,-460.0,0.0002162,2]
[376050349,1753840244761,-1629.06,0.0002162,2]
[376050351,1753840244770,-920.55,0.0002162,2]
[376050353,1753840244779,-460.0,0.0002162,2]
[376050355,1753840244788,-460.0,0.0002162,2]
[376050357,1753840244798,-564.91019085,0.0002162,2]
[376050359,1753840244807,-460.49,0.0002162,2]
[376050361,1753840244816,-4231.04,0.00021621,2]
[376050363,1753840244825,-1935.82,0.00021622,2]
[376050365,1753840244835,-430.1392862,0.00021692,2]
[376050367,1753840244844,-859.2026422,0.00021692,2]
[376050369,1753840244853,-1155.9526372,0.00021699,2]
[376050371,1753840244865,-155.2560812,0.00021699,2]
[376050373,1753840244874,-891.25219417,0.00021721,2]
[376050375,1753840244883,-115147.69890154,0.00021739,2]
[376050377,1753840244894,-151.706462,0.00021739,2]
[376050378,1753840244906,-153.442753,0.00021739,2]
[376050380,1753840244915,-152.871016,0.00021739,2]
[376050382,1753840244924,-151.0,0.00021739,2]
[376050384,1753840244935,-500.0,0.00021773,2]
[376050386,1753840244944,-501.36554617,0.00021773,2]
[376050388,1753840244953,-500.0,0.00021773,2]
[376050390,1753840244962,-393.29765068,0.00021773,2]
[376050392,1753840244972,-500.97626076,0.00021773,2]
[376050394,1753840244981,-510.57913646,0.00021773,2]
[376050396,1753840244991,-500.0,0.00021773,2]
[376050398,1753840245001,-500.0,0.00021773,2]
[376050400,1753840245011,-501.43797986,0.00021773,2]
[376050402,1753840245021,-500.0,0.00021773,2]
[376050404,1753840245031,-210.68415856,0.00021773,2]
[376050406,1753840245040,-500.0,0.00021773,2]
[376050408,1753840245050,-500.0,0.00021773,2]
[376050410,1753840245060,-500.53780938,0.00021773,2]
[376050412,1753840245069,-500.0,0.00021773,2]
[376050414,1753840245079,-548.07132495,0.00021773,2]
[376050416,1753840245088,-500.0,0.00021773,2]
[376050418,1753840245098,-501.5162576,0.00021773,2]
[376050420,1753840245109,-800.000001,0.0002178,2]
[376050423,1753840245119,-179.732417,0.00021795,2]
[376050424,1753840245128,-1000.0,0.000218,10]
[376050426,1753840245137,-426.1,0.00021821,4]
[376050428,1753840245146,-160.0,0.00021868,4]
[376050430,1753840245155,-160.1053548,0.0002189,2]
[376050432,1753840245165,-356.6707319,0.0002189,2]
[376050434,1753840245175,-160.1053548,0.0002189,2]
[376050436,1753840245183,-160.1053548,0.0002189,2]
[376050438,1753840245193,-160.1053548,0.0002189,2]
[376050440,1753840245202,-160.1053548,0.0002189,2]
[376050442,1753840245211,-160.1053548,0.0002189,2]
[376050444,1753840245221,-1939.76,0.00021892,2]
[376050446,1753840245230,-1120.65,0.00021892,2]
[376050448,1753840245240,-818.13,0.00021892,2]
[376050450,1753840245250,-460.0,0.00021893,2]
[376050452,1753840245259,-460.0,0.00021893,2]
[376050454,1753840245268,-647.4,0.00021893,2]
[376050456,1753840245278,-460.0,0.00021893,2]
[376050458,1753840245287,-460.0,0.00021893,2]
[376050460,1753840245297,-1294.82,0.00021893,2]
[376050462,1753840245306,-460.0,0.00021893,2]
[376050464,1753840245315,-460.0,0.00021893,2]
[376050466,1753840245325,-1534.99,0.00021894,2]
[376050468,1753840245334,-737.07,0.00021894,2]
[376050470,1753840245345,-460.0,0.00021894,2]
[376050472,1753840245356,-678.08,0.00021894,2]
[376050474,1753840245368,-460.0,0.00021894,2]
[376050477,1753840245378,-1013.8,0.00021894,2]
[376050480,1753840245388,-460.0,0.00021894,2]
[376050483,1753840245397,-466.28,0.00021894,2]
[376050485,1753840245407,-779.48,0.00021894,2]
[376050487,1753840245416,-1980.43,0.00021894,2]
[376050489,1753840245426,-460.0,0.00021894,2]
[376050491,1753840245435,-484.35,0.00021894,2]
[376050493,1753840245444,-460.0,0.00021894,2]
[376050495,1753840245454,-1629.06,0.00021894,2]
[376050497,1753840245463,-920.55,0.00021894,2]
[376050499,1753840245473,-460.0,0.00021894,2]
[376050501,1753840245483,-460.0,0.00021894,2]
[376050515,1753840245600,-460.49,0.00021894,2]
[376050517,1753840245610,-4231.04,0.00021895,2]
[376050519,1753840245620,-1935.82,0.00021896,2]
[376050521,1753840245630,-500.0,0.00021904,2]
[376050523,1753840245640,-500.0,0.00021917,2]
[376050525,1753840245649,-500.0,0.00021917,2]
[376050527,1753840245658,-500.0,0.00021917,2]
[376050529,1753840245667,-500.0,0.00021917,2]
[376050530,1753840245677,-500.0,0.00021917,2]
[376050532,1753840245686,-500.0,0.00021917,2]
[376050534,1753840245695,-504.00606419,0.00021917,2]
[376050536,1753840245704,-199.914355,0.00021917,2]
[376050539,1753840245714,-151.0,0.00021917,2]
[376050540,1753840245724,-151.0,0.00021917,2]
[376050542,1753840245733,-151.0,0.00021917,2]
[376050544,1753840245742,-200.0,0.00021918,2]
[376050546,1753840245752,-578.1881624,0.00021945,2]
[376050549,1753840245762,-502.15162285,0.00021973,2]
[376050551,1753840245772,-500.14759104,0.00021973,2]